bitfinex/quotes_SOLUSD_20250415
["timestamp","ask_amount","ask_price","bid_price","bid_amount"]
[1744686630662,19.05670679,129.44,129.43,0.0001]
[1744686631973,17.81313287,129.44,129.43,0.0001]
[1744686642709,7.7255,129.44,129.43,0.0001]
[1744686642996,7.7237,129.47,129.43,16.46643287]
[1744686643167,7.7228,129.49,129.45,10.08763287]
[1744686643593,10.08763287,129.48,129.43,27.44643287]
[1744686643895,17.81043287,129.49,129.45,10.08763287]
[1744686645492,17.81043287,129.49,129.44,28.73728173]
[1744686646196,7.7237,129.47,129.43,27.44643287]
[1744686646391,17.81133287,129.47,129.43,17.3588]
[1744686646776,10.08763287,129.46,129.43,17.3588]
[1744686647000,10.08763287,129.45,129.43,10.9801]
[1744686647478,10.08763287,129.45,129.43,0.0001]
[1744686648402,7.7255,129.44,129.43,0.0001]
[1744686649389,17.81313287,129.44,129.43,0.0001]
[1744686653185,7.7255,129.44,129.43,0.0001]
[1744686653586,17.81313287,129.44,129.43,0.0001]
[1744686660310,26.0,129.41,129.39,0.0001]
[1744686660612,26.0,129.42,129.38,0.0001]
[1744686660613,36.08763287,129.4,129.38,0.0001]
[1744686660908,36.08763287,129.4,129.35,0.063]
[1744686660909,10.08763287,129.39,129.35,0.063]
[1744686661108,10.08763287,129.37,129.35,0.063]
[1744686661406,10.08763287,129.38,129.35,0.063]
[1744686661618,130.94669514,129.43,129.36,10.15063287]
[1744686661619,82.3489,129.43,129.36,10.15063287]
[1744686661797,10.08763287,129.41,129.36,10.15063287]
[1744686661987,7.7279,129.4,129.36,10.15063287]
[1744686662311,10.08763287,129.39,129.36,0.063]
[1744686663213,10.08763287,129.38,129.36,0.063]
[1744686663382,10.08763287,129.37,129.36,0.063]
[1744686664300,17.81733287,129.37,129.36,0.063]
[1744686671201,17.82706499,129.37,129.36,0.063]
[1744686675026,17.82651976,129.37,129.36,0.063]
[1744686675900,7.7297,129.37,129.36,0.063]
[1744686676320,17.82651976,129.37,129.36,0.063]
[1744686678718,7.7297,129.37,129.36,0.063]
[1744686678902,7.7294,129.38,129.36,0.063]
[1744686679523,17.82561976,129.39,129.36,0.063]
[1744686679728,7.7288,129.39,129.36,0.063]
[1744686679912,7.7288,129.39,129.36,10.15981976]
[1744686680306,17.82561976,129.39,129.36,0.063]
[1744686687329,10.09681976,129.38,129.36,0.063]
[1744686687630,17.82651976,129.37,129.36,0.063]
[1744686688206,17.82651976,129.37,129.36,0.0001]
[1744686690307,48.85273952,129.37,129.34,0.063]
[1744686690513,10.09681976,129.35,129.34,0.063]
[1744686691026,10.09681976,129.36,129.34,0.063]
[1744686691228,37.15091976,129.37,129.34,0.063]
[1744686691536,17.82471976,129.4,129.36,10.09681976]
[1744686691912,17.82471976,129.4,129.35,10.09681976]
[1744686692328,17.82471976,129.4,129.35,21.07681976]
[1744686693130,10.09681976,129.39,129.35,21.07681976]
[1744686693433,10.09681976,129.37,129.35,10.98]
[1744686693840,10.09681976,129.37,129.34,0.063]
[1744686694420,10.09681976,129.35,129.34,0.063]
[1744686695022,17.82771976,129.35,129.34,0.063]
[1744686701241,7.7309,129.35,129.34,0.063]
[1744686701537,17.82711976,129.36,129.34,0.063]
[1744686702631,7.7303,129.36,129.34,0.063]
[1744686702818,17.82711976,129.36,129.34,0.063]
[1744686703737,65.6876,129.4,129.34,0.063]
[1744686703923,10.09681976,129.37,129.34,0.063]
[1744686706040,7.7303,129.36,129.34,0.063]
[1744686707141,7.7299,129.37,129.34,19.13913357]
[1744686707330,7.7299,129.37,129.34,29.23595333]
[1744686707945,7.7299,129.37,129.34,19.13913357]
[1744686708130,7.7291,129.38,129.34,29.23595333]
[1744686708331,17.82591976,129.38,129.34,19.13913357]
[1744686708849,10.09681976,129.37,129.34,0.063]
[1744686710544,7.7303,129.36,129.34,0.063]
[1744686712842,10.09681976,129.39,129.34,29.23595333]
[1744686713042,10.09681976,129.38,129.34,29.23595333]
[1744686713344,6.46021717,129.37,129.34,0.063]
[1744686714652,7.7303,129.36,129.34,0.063]
[1744686715749,7.7297,129.37,129.34,0.063]
[1744686715952,7.7297,129.37,129.34,6.52321717]
[1744686717451,7.7297,129.37,129.34,0.063]
[1744686721862,7.7297,129.37,129.34,19.13913357]
[1744686722247,27.0541,129.37,129.34,0.063]
[1744686722443,6.46021717,129.36,129.34,0.063]
[1744686723258,33.51431717,129.37,129.34,0.063]
[1744686724254,6.46021717,129.36,129.34,0.063]
[1744686724758,27.0541,129.37,129.34,0.063]
[1744686725056,33.51431717,129.37,129.34,0.063]
[1744686725555,14.18991717,129.37,129.34,0.063]
[1744686725759,7.7297,129.37,129.34,0.063]
[1744686726059,7.7297,129.37,129.34,25.59935074]
[1744686728359,7.7291,129.38,129.34,25.59935074]
[1744686728859,14.18931717,129.38,129.34,25.59935074]
[1744686729857,14.18931717,129.38,129.34,19.13913357]
[1744686730560,7.7291,129.38,129.34,27.16905074]
[1744686731556,7.7291,129.38,129.34,20.70883357]
[1744686731746,14.18931717,129.38,129.34,20.70883357]
[1744686732437,6.46021717,129.37,129.34,0.063]
[1744686732765,14.19051717,129.36,129.34,0.063]
[1744686732971,6.46021717,129.35,129.34,0.063]
[1744686734143,14.19051717,129.36,129.34,0.063]
[1744686734867,7.7303,129.36,129.34,0.063]
[1744686735368,14.19051717,129.36,129.34,0.063]
[1744686735542,6.46021717,129.35,129.34,0.063]
[1744686736143,14.19051717,129.36,129.34,0.063]
[1744686737862,6.46021717,129.35,129.34,0.063]
[1744686738647,14.19051717,129.36,129.34,0.063]
[1744686739565,6.46021717,129.35,129.34,0.063]
[1744686741963,57.969,129.38,129.34,0.063]
[1744686742161,27.0541,129.37,129.34,0.063]
[1744686742361,6.46021717,129.36,129.34,0.063]
[1744686744066,7.7309,129.35,129.34,0.063]
[1744686744267,6.46021717,129.38,129.34,6.52321717]
[1744686744475,7.7291,129.38,129.35,6.46021717]
[1744686745473,7.7291,129.38,129.34,17.50321717]
[1744686746469,14.18931717,129.38,129.34,17.50321717]
[1744686747753,7.7291,129.38,129.34,17.50321717]
[1744686750282,33.51221717,129.38,129.34,11.043]
[1744686750772,27.052,129.38,129.34,11.043]
[1744686751072,33.51221717,129.38,129.34,17.50321717]
[1744686752384,7.7291,129.38,129.34,17.50321717]
[1744686752677,7.7291,129.38,129.35,25.53635074]
[1744686753777,7.7291,129.38,129.35,19.07613357]
[1744686754075,6.46021717,129.37,129.34,11.043]
[1744686755855,7.7303,129.36,129.34,11.043]
[1744686758082,6.46021717,129.37,129.34,11.043]
[1744686758384,6.46021717,129.36,129.34,11.043]
[1744686758556,6.46021717,129.36,129.34,0.063]
[1744686760381,7.7309,129.35,129.34,0.063]
[1744686760682,7.7306,129.36,129.34,6.52321717]
[1744686761787,19.3211,129.4,129.35,0.14216157]
[1744686761960,11.01,129.43,129.37,6.46021717]
[1744686762161,6.46021717,129.42,129.37,6.46021717]
[1744686762458,0.03,129.43,129.41,6.46021717]
[1744686762663,0.03,129.43,129.4,6.46021717]
[1744686763581,0.03,129.43,129.41,6.46021717]
[1744686763964,0.03,129.43,129.42,6.46021717]
[1744686765580,0.03,129.43,129.41,25.53635074]
[1744686767894,0.03,129.43,129.42,25.53635074]
[1744686769298,0.03,129.43,129.4,17.61656157]
[1744686769891,7.7561,129.43,129.4,17.61656157]
[1744686770094,7.7561,129.43,129.4,24.07677874]
[1744686770301,7.7561,129.43,129.42,6.46021717]
[1744686770302,0.03,129.43,129.42,6.46021717]
[1744686770994,0.03,129.43,129.41,25.10986603]
[1744686776599,0.03,129.43,129.42,6.46021717]
[1744686776902,0.03,129.43,129.42,25.53635074]
[1744686777770,0.03,129.43,129.42,25.67851231]
[1744686779205,0.03,129.43,129.42,39.86542948]
[1744686779501,0.03,129.43,129.42,142.24608099]
[1744686779705,0.03,129.43,129.42,116.40521231]
[1744686780423,0.03,129.43,129.42,142.24608099]
[1744686780583,0.03,129.43,129.42,148.89998099]
[1744686781588,0.03,129.45,129.43,19.21829514]
[1744686781790,0.03,129.46,129.45,19.21829514]
[1744686781995,0.03,129.46,129.45,119.63851231]
[1744686790506,0.03,129.46,129.45,127.36341231]
[1744686792709,0.03,129.49,129.48,45.21829514]
[1744686792905,0.03,129.49,129.48,51.67851231]
[1744686794801,0.03,129.49,129.48,25.53635074]
[1744686795005,0.03,129.49,129.47,19.07613357]
[1744686795413,0.03,129.49,129.47,25.53635074]
[1744686795713,0.03,129.49,129.48,6.88670188]
[1744686796609,0.03,129.49,129.48,40.75206345]
[1744686796785,0.03,129.49,129.48,14.75206345]
[1744686797209,0.03,129.49,129.48,33.02886345]
[1744686798101,0.03,129.49,129.48,174.58598099]
[1744686799894,0.03,129.49,129.48,148.58598099]
[1744686800088,0.03,129.49,129.48,150.12758099]
[1744686802212,0.03,129.51,129.49,19.21829514]
[1744686802418,0.03,129.51,129.49,25.67851231]
[1744686803308,0.03,129.52,129.51,18.933972]
[1744686803505,0.03,129.52,129.51,25.67851231]
[1744686804213,0.03,129.52,129.51,33.39991231]
[1744686808718,0.03,129.52,129.51,6.74454031]
[1744686809098,0.03,129.52,129.51,7.02886345]
[1744686809432,0.03,129.52,129.51,6.74454031]
[1744686810909,0.03,129.52,129.51,7.02886345]
[1744686812023,0.03,129.52,129.51,6.74454031]
[1744686812524,0.03,129.52,129.51,6.88670188]
[1744686814020,0.03,129.52,129.51,0.42648471]
[1744686814327,0.03,129.52,129.51,25.53635074]
[1744686815002,0.03,129.52,129.51,25.67851231]
[1744686816299,0.03,129.52,129.5,83.0]
[1744686816502,6.49021717,129.52,129.48,18.64964886]
[1744686816706,0.03,129.52,129.49,6.46021717]
[1744686817323,0.03,129.52,129.48,6.60237874]
[1744686817523,0.03,129.52,129.51,25.67851231]
[1744686817738,0.03,129.52,129.51,36.61851231]
[1744686820509,0.03,129.52,129.51,30.01613357]
[1744686821932,0.03,129.52,129.51,10.94]
[1744686823739,6.49021717,129.52,129.47,10.94]
[1744686824034,6.46021717,129.51,129.47,29.58964886]
[1744686824709,6.46021717,129.5,129.47,10.94]
[1744686825823,7.7226,129.49,129.47,10.94]
[1744686826963,0.03,129.52,129.48,25.53635074]
[1744686827115,0.03,129.52,129.51,6.46021717]
[1744686834223,0.03,129.52,129.5,19.07613357]
[1744686834424,0.03,129.52,129.49,10.94]
[1744686834425,6.49021717,129.52,129.49,10.94]
[1744686834626,6.49021717,129.52,129.44,111.31687511]
[1744686834627,6.46021717,129.5,129.45,0.14216157]
[1744686834827,6.46021717,129.48,129.45,0.14216157]
[1744686835026,6.46021717,129.48,129.45,18.79181043]
[1744686835539,6.46021717,129.48,129.44,19.94327511]
[1744686835744,6.46021717,129.47,129.44,10.94]
[1744686835949,6.46021717,129.46,129.44,10.94]
[1744686836252,7.7249,129.45,129.44,10.94]
[1744686836960,19.3053,129.5,129.45,19.07613357]
[1744686837132,29.38150905,129.5,129.45,29.15234262]
[1744686837534,7.7226,129.49,129.45,29.15234262]
[1744686838654,10.07620905,129.5,129.46,10.07620905]
[1744686838859,1.5233,129.51,129.47,29.29450419]
[1744686840036,19.32090905,129.51,129.46,10.07620905]
[1744686843155,0.03,129.52,129.5,10.07620905]
[1744686843371,0.03,129.52,129.5,10.36053219]
[1744686843662,0.03,129.52,129.5,18.933972]
[1744686843866,0.03,129.52,129.51,29.15234262]
[1744686844457,0.03,129.52,129.51,19.07613357]
[1744686844652,7.7509,129.52,129.49,21.01620905]
[1744686845168,0.03,129.52,129.5,10.07620905]
[1744686845966,0.03,129.52,129.5,28.72585791]
[1744686849171,0.03,129.52,129.49,21.01620905]
[1744686849365,0.03,129.52,129.49,10.94]
[1744686849366,10.10620905,129.52,129.49,10.94]
[1744686849672,10.07620905,129.5,129.49,10.94]
[1744686849859,7.7226,129.49,129.46,10.21837062]
[1744686850362,27.0291,129.49,129.46,10.21837062]
[1744686851053,27.0291,129.49,129.45,39.80801948]
[1744686851370,10.07620905,129.48,129.45,10.94]
[1744686851675,37.10530905,129.49,129.45,21.01620905]
[1744686851976,27.0291,129.49,129.45,21.01620905]
[1744686853668,7.7226,129.49,129.46,19.07613357]
[1744686853876,7.7226,129.49,129.47,10.07620905]
[1744686854369,17.79880905,129.49,129.45,10.94]
[1744686854573,10.07620905,129.47,129.45,10.94]
[1744686854771,7.7243,129.46,129.45,10.94]
[1744686856580,7.7232,129.48,129.45,40.09234262]
[1744686857081,7.7232,129.48,129.45,30.01613357]
[1744686858669,7.722,129.5,129.47,29.15234262]
[1744686859063,7.722,129.5,129.46,10.07620905]
[1744686859064,37.10320905,129.5,129.46,10.07620905]
[1744686859385,37.10320905,129.5,129.46,28.72585791]
[1744686859386,27.027,129.5,129.46,28.72585791]
[1744686860477,37.10320905,129.5,129.46,28.72585791]
[1744686862761,27.027,129.5,129.46,28.72585791]
[1744686863971,37.10320905,129.5,129.46,28.72585791]
[1744686865079,37.10320905,129.5,129.46,18.64964886]
[1744686865280,10.07620905,129.48,129.45,30.01613357]
[1744686865477,10.07620905,129.48,129.45,10.94]
[1744686865876,7.7237,129.47,129.45,10.94]
[1744686866075,10.07620905,129.46,129.45,10.94]
[1744686866270,37.10930905,129.47,129.43,18.996972]
[1744686866470,37.10930905,129.47,129.43,29.07318105]
[1744686868591,10.07620905,129.48,129.43,29.07318105]
[1744686870784,7.7237,129.47,129.45,10.07620905]
[1744686871081,7.7237,129.47,129.44,10.50269376]
[1744686872090,27.032,129.48,129.44,10.50269376]
[1744686872765,37.10820905,129.48,129.44,0.42648471]
[1744686873184,33.482441,129.48,129.44,0.42648471]
[1744686873380,27.032,129.48,129.44,6.87692571]
[1744686876179,6.450441,129.48,129.44,0.42648471]
[1744686878097,6.450441,129.49,129.44,6.87692571]
[1744686878696,27.0528,129.52,129.45,6.450441]
[1744686878885,33.503241,129.52,129.47,6.87692571]
[1744686879082,6.450441,129.51,129.47,0.42648471]
[1744686879399,6.450441,129.49,129.45,18.64964886]
[1744686880081,27.0312,129.48,129.45,18.64964886]
[1744686880400,33.481641,129.48,129.44,19.07613357]
[1744686881308,10.07912513,129.48,129.44,19.07613357]
[1744686882185,10.07912513,129.47,129.43,0.063]
[1744686882717,10.07912513,129.49,129.44,10.07912513]
[1744686883306,36.07912513,129.49,129.44,10.07912513]
[1744686883688,7.7232,129.48,129.45,0.42648471]
[1744686883902,7.7232,129.48,129.45,10.07912513]
[1744686884382,7.4832,129.48,129.45,10.07912513]
[1744686886186,7.4832,129.48,129.45,18.64964886]
[1744686887608,7.4832,129.48,129.45,28.72877399]
[1744686889615,7.7214,129.51,129.49,0.14216157]
[1744686889914,0.03,129.52,129.51,19.07613357]
[1744686890213,0.03,129.52,129.51,37.25002027]
[1744686892612,0.03,129.52,129.51,44.97142027]
[1744686894712,0.03,129.52,129.51,37.25002027]
[1744686895211,0.03,129.52,129.51,29.29742027]
[1744686896425,0.03,129.52,129.51,19.07613357]
[1744686896892,0.03,129.52,129.51,18.933972]
[1744686897215,10.10912513,129.52,129.5,10.92]
[1744686897399,10.07912513,129.51,129.47,18.79181043]
[1744686897606,10.07912513,129.49,129.46,251.84]
[1744686897811,10.07912513,129.49,129.46,10.92]
[1744686898598,7.7232,129.48,129.46,10.92]
[1744686899798,7.7232,129.48,129.46,20.99912513]
[1744686900422,7.7232,129.48,129.46,10.92]
[1744686900615,7.7226,129.49,129.46,10.92]
[1744686902424,7.7214,129.51,129.47,19.07613357]
[1744686902619,7.7214,129.51,129.47,29.1552587]
[1744686902812,17.80052513,129.51,129.47,19.07613357]
[1744686903199,10.07912513,129.5,129.47,19.07613357]
[1744686903595,10.07912513,129.49,129.46,10.92]
[1744686904311,10.07912513,129.5,129.46,10.92]
[1744686904518,17.80052513,129.51,129.47,19.07613357]
[1744686905029,10.07912513,129.5,129.47,19.07613357]
[1744686905626,10.07912513,129.49,129.46,10.92]
[1744686905924,10.07912513,129.5,129.46,10.92]
[1744686907043,10.07912513,129.49,129.46,10.92]
[1744686907624,10.07912513,129.5,129.46,10.92]
[1744686909226,7.7226,129.49,129.46,10.92]
[1744686913715,10.07912513,129.48,129.46,10.92]
[1744686913916,10.07912513,129.47,129.43,0.063]
[1744686914115,10.07912513,129.47,129.43,18.85481043]
[1744686914432,10.07912513,129.48,129.44,10.36344827]
[1744686915131,6.45010845,129.48,129.44,6.73443159]
[1744686915731,7.7237,129.47,129.44,6.73443159]
[1744686918033,7.7237,129.47,129.44,0.28432314]
[1744686918717,14.17380845,129.47,129.44,0.28432314]
[1744686918924,6.45010845,129.46,129.43,18.85481043]
[1744686919425,6.45010845,129.45,129.43,0.063]
[1744686919829,7.7255,129.44,129.43,0.063]
[1744686920537,7.7252,129.45,129.43,0.063]
[1744686921410,7.7246,129.46,129.43,0.063]
[1744686921830,38.6102,129.5,129.45,18.79181043]
[1744686921831,19.3064,129.5,129.45,18.79181043]
[1744686922012,33.47850845,129.5,129.45,25.24191888]
[1744686922732,33.47850845,129.5,129.46,0.28432314]
[1744686922929,14.17210845,129.5,129.46,6.73443159]
[1744686923737,7.722,129.5,129.46,6.73443159]
[1744686924545,14.17210845,129.5,129.46,6.73443159]
[1744686924725,14.17210845,129.5,129.46,18.933972]
[1744686925043,33.47710845,129.5,129.46,18.933972]
[1744686926041,6.45010845,129.49,129.46,18.933972]
[1744686926241,7.7232,129.48,129.46,18.933972]
[1744686928443,7.7232,129.48,129.45,11.06216157]
[1744686928740,6.45010845,129.47,129.45,10.92]
[1744686930351,6.45010845,129.46,129.43,0.063]
[1744686930527,7.7249,129.45,129.43,0.063]
[1744686930936,7.7247,129.46,129.43,25.58924202]
[1744686931125,7.7232,129.48,129.44,6.45010845]
[1744686931437,14.17330845,129.48,129.44,6.45010845]
[1744686931925,14.17330845,129.48,129.43,25.58924202]
[1744686932128,14.17330845,129.48,129.44,6.45010845]
[1744686933046,14.17330845,129.48,129.43,25.58924202]
[1744686933549,14.17330845,129.48,129.44,6.45010845]
[1744686933841,7.7232,129.48,129.44,6.45010845]
[1744686934024,7.7232,129.48,129.45,19.07613357]
[1744686934630,7.7232,129.48,129.45,6.87659316]
[1744686935032,7.7229,129.49,129.45,6.87659316]
[1744686935452,14.17300845,129.49,129.45,0.42648471]
[1744686936532,14.17300845,129.49,129.45,11.34648471]
[1744686940552,7.7229,129.49,129.45,17.79659316]
[1744686943651,7.7229,129.49,129.45,11.34648471]
[1744686943853,14.17300845,129.49,129.45,11.34648471]
[1744686944149,6.45010845,129.46,129.45,10.92]
[1744686944758,6.45010845,129.46,129.43,0.063]
[1744686944942,6.45010845,129.45,129.43,0.063]
[1744686945458,6.45010845,129.44,129.43,0.063]
[1744686945955,14.17560845,129.44,129.43,0.063]
[1744686946154,7.7255,129.44,129.43,0.063]
[1744686948543,7.7255,129.44,129.43,25.58924202]
[1744686948745,7.7253,129.45,129.43,25.44708045]
[1744686949435,7.7253,129.45,129.43,18.996972]
[1744686950453,7.7243,129.46,129.43,18.996972]
[1744686950658,7.7243,129.46,129.43,25.44708045]
[1744686951261,7.7243,129.46,129.43,18.996972]
[1744686957341,6.45010845,129.45,129.43,0.063]
[1744686957540,6.45010845,129.44,129.43,0.063]
[1744686958158,14.17560845,129.44,129.43,0.063]
[1744686958357,7.7255,129.44,129.43,0.063]
[1744686960152,27.0352,129.46,129.43,0.063]
[1744686960451,33.48530845,129.46,129.43,0.063]
[1744686961369,33.48530845,129.46,129.43,0.20516157]
[1744686961370,7.7243,129.46,129.43,0.20516157]
[1744686961666,7.7243,129.46,129.44,19.07613357]
[1744686962164,7.7237,129.47,129.44,19.07613357]
[1744686962361,7.7226,129.49,129.46,25.52624202]
[1744686962663,7.7226,129.49,129.47,6.45010845]
[1744686963562,14.17210845,129.5,129.46,36.44624202]
[1744686964147,7.722,129.5,129.46,36.44624202]
[1744686966464,0.03,129.52,129.46,36.44624202]
[1744686966465,0.03,129.52,129.5,19.07613357]
[1744686966770,0.03,129.52,129.51,36.56840359]
[1744686968375,0.03,129.52,129.51,30.11829514]
[1744686968567,0.03,129.52,129.51,36.56840359]
[1744686969470,0.03,129.52,129.51,30.11829514]
[1744686969771,0.03,129.52,129.51,36.56840359]
[1744686975277,0.03,129.52,129.51,44.28980359]
[1744686977580,0.03,129.52,129.51,36.56840359]
[1744686977783,6.48010845,129.52,129.47,10.9]
[1744686977970,6.45010845,129.51,129.48,30.0]
[1744686978177,6.45010845,129.49,129.47,10.9]
[1744686978357,0.03,129.52,129.43,12.83230845]
[1744686978358,6.45010845,129.48,129.44,19.21829514]
[1744686978877,6.45010845,129.49,129.45,30.0]
[1744686979187,8.09970845,129.51,129.46,25.24191888]
[1744686979376,7.722,129.5,129.46,25.24191888]
[1744686979879,14.17210845,129.5,129.46,18.79181043]
[1744686980184,6.45010845,129.49,129.47,0.28432314]
[1744686980383,14.17210845,129.5,129.47,0.28432314]
[1744686980681,33.47710845,129.5,129.47,0.28432314]
[1744686982181,6.45010845,129.49,129.47,0.28432314]
[1744686983478,14.17330845,129.48,129.43,17.2822]
[1744686983677,6.45010845,129.45,129.43,10.963]
[1744686983888,6.45010845,129.44,129.43,10.963]
[1744686984264,6.45010845,129.44,129.43,0.063]
[1744686985289,10.08528378,129.44,129.43,0.063]
[1744686985477,7.7255,129.44,129.43,0.063]
[1744686985876,7.7251,129.45,129.43,0.063]
[1744686986386,17.80968378,129.46,129.43,18.85481043]
[1744686986590,10.08528378,129.48,129.44,21.26960692]
[1744686986775,7.7226,129.49,129.46,0.28432314]
[1744686987477,7.7237,129.48,129.45,29.30357892]
[1744686987670,7.7228,129.49,129.46,10.08528378]
[1744686988783,7.7214,129.51,129.48,10.08528378]
[1744686988986,0.03,129.52,129.49,10.08528378]
[1744686989196,10.11528378,129.52,129.48,10.08528378]
[1744686989487,7.751,129.52,129.48,10.08528378]
[1744686990187,10.08528378,129.51,129.47,10.51176849]
[1744686990384,10.08528378,129.51,129.47,19.07613357]
[1744686990585,37.13828378,129.52,129.47,29.16141735]
[1744686991784,37.13828378,129.52,129.48,10.08528378]
[1744686991785,7.751,129.52,129.48,10.08528378]
[1744686991988,7.751,129.52,129.49,10.08528378]
[1744686994983,17.83628378,129.52,129.49,19.07613357]
[1744686995477,7.751,129.52,129.49,19.07613357]
[1744686996279,7.751,129.52,129.45,83.14216157]
[1744686996280,10.08528378,129.51,129.45,83.14216157]
[1744686996484,10.08528378,129.5,129.46,18.79181043]
[1744686996996,10.08528378,129.5,129.46,28.87709421]
[1744686997491,27.053,129.52,129.48,0.14216157]
[1744686997492,37.13828378,129.52,129.48,0.14216157]
[1744686997695,27.053,129.52,129.48,10.08528378]
[1744686997873,37.13828378,129.52,129.48,0.14216157]
[1744686998074,10.08528378,129.51,129.47,0.42648471]
[1744686998277,7.722,129.5,129.47,10.51176849]
[1744686998698,7.722,129.5,129.48,10.08528378]
[1744686999201,7.722,129.5,129.47,10.65393006]
[1744686999609,29.41728378,129.52,129.47,10.65393006]
[1744686999787,7.751,129.52,129.49,19.07613357]
[1744686999984,0.03,129.52,129.49,29.16141735]
[1744687000182,0.03,129.52,129.51,19.07613357]
[1744687000377,0.03,129.52,129.51,37.02497892]
[1744687000897,0.03,129.52,129.51,29.30357892]
[1744687003100,0.03,129.52,129.51,19.21829514]
[1744687003698,0.03,129.52,129.51,19.07613357]
[1744687003900,10.11528378,129.52,129.47,0.14216157]
[1744687004086,10.08528378,129.49,129.46,0.14216157]
[1744687004291,10.08528378,129.49,129.46,18.79181043]
[1744687004482,10.08528378,129.49,129.46,48.79181043]
[1744687005198,7.7232,129.48,129.46,18.79181043]
[1744687005406,17.80748378,129.5,129.47,0.28432314]
[1744687005695,7.7222,129.5,129.47,0.28432314]
[1744687007187,17.80748378,129.5,129.47,0.28432314]
[1744687007600,10.08528378,129.49,129.46,18.79181043]
[1744687008482,17.80748378,129.5,129.46,18.79181043]
[1744687009990,7.751,129.52,129.47,0.42648471]
[1744687010194,7.751,129.52,129.5,19.07613357]
[1744687010386,7.751,129.52,129.48,10.08528378]
[1744687010592,17.83628378,129.52,129.49,0.42648471]
[1744687011095,7.751,129.52,129.49,19.07613357]
[1744687013105,0.03,129.52,129.5,0.14216157]
[1744687013315,0.03,129.52,129.51,0.42648471]
[1744687014309,0.03,129.52,129.51,19.07613357]
[1744687014499,0.03,129.52,129.51,29.30357892]
[1744687016107,0.03,129.52,129.51,19.21829514]
[1744687016410,0.03,129.52,129.51,29.30357892]
[1744687017714,0.03,129.52,129.51,29.16141735]
[1744687017918,0.03,129.52,129.5,10.88]
[1744687019114,10.11528378,129.52,129.5,10.88]
[1744687020019,7.7214,129.51,129.5,10.88]
[1744687021119,17.80668378,129.51,129.46,20.96528378]
[1744687021300,10.08528378,129.48,129.46,10.88]
[1744687021720,10.08528378,129.49,129.46,10.88]
[1744687022417,17.80668378,129.51,129.47,18.79181043]
[1744687022793,7.7214,129.51,129.48,0.28432314]
[1744687023213,0.03,129.52,129.48,0.28432314]
[1744687023399,10.08528378,129.51,129.48,0.28432314]
[1744687023922,10.11528378,129.52,129.48,0.28432314]
[1744687024503,0.03,129.52,129.48,10.36960692]
[1744687024815,0.03,129.52,129.51,29.30357892]
[1744687025024,0.03,129.52,129.51,40.18357892]
[1744687025616,0.03,129.52,129.51,47.90497892]
[1744687028916,0.03,129.52,129.51,77.90497892]
[1744687030431,0.03,129.55,129.54,26.14216157]
[1744687030636,0.03,129.55,129.54,122.3888627]
[1744687030806,0.03,129.55,129.54,120.02317892]
[1744687032535,0.03,129.55,129.54,112.30357892]
[1744687032735,0.03,129.55,129.54,112.01925578]
[1744687033035,0.03,129.55,129.52,29.01925578]
[1744687033210,0.03,129.55,129.53,30.0]
[1744687033413,0.03,129.55,129.53,0.28432314]
[1744687034337,0.03,129.55,129.54,0.14216157]
[1744687034535,0.03,129.55,129.54,0.42648471]
[1744687034941,0.03,129.55,129.54,10.65393006]
[1744687035426,0.03,129.55,129.54,122.3888627]
[1744687036443,0.03,129.55,129.54,130.1084627]
[1744687037546,0.03,129.55,129.54,160.1084627]
[1744687038119,0.03,129.56,129.55,19.21829514]
[1744687038439,0.03,129.56,129.55,29.30357892]
[1744687040228,0.03,129.59,129.58,45.21829514]
[1744687040428,0.03,129.61,129.6,29.30357892]
[1744687040934,0.03,129.61,129.6,39.3888627]
[1744687041140,0.03,129.61,129.6,29.30357892]
[1744687042340,0.03,129.61,129.6,37.01957892]
[1744687042523,0.03,129.61,129.6,19.07613357]